bitfinex-derivatives/quotes_ETHF0:USTF0_20260223
["timestamp","ask_amount","ask_price","bid_price","bid_amount"]
[1771840968824,0.56409148,1924.7,1923.6,0.59133958]
[1771840969213,0.56409148,1924.3,1923.2,0.59133958]
[1771840969416,0.56409148,1924.3,1923.2,0.5979027]
[1771840969613,0.56409148,1924.8,1923.2,0.5979027]
[1771840969819,0.56409148,1924.6,1923.4,0.59133958]
[1771840970426,6.803,1924.5,1923.4,0.59133958]
[1771840970624,4.3,1924.4,1923.4,0.59133958]
[1771840971029,6.804,1924.6,1923.8,0.59133958]
[1771840971223,0.56409148,1925.4,1924.2,0.59133958]
[1771840971526,7.36809148,1925.4,1924.4,0.59133958]
[1771840971730,0.56409148,1925.3,1924.4,0.59133958]
[1771840971931,6.804,1925.2,1924.4,0.59133958]
[1771840972229,0.56409148,1925.3,1924.4,0.59133958]
[1771840972421,6.804,1925.2,1924.4,0.59133958]
[1771840972730,0.56409148,1925.1,1924.4,0.59133958]
[1771840973927,6.805,1925.0,1924.4,0.59133958]
[1771840974232,7.36909148,1925.0,1923.9,0.59133958]
[1771840974533,6.805,1925.1,1924.0,0.59133958]
[1771840974734,0.56409148,1925.1,1924.0,0.59133958]
[1771840975028,7.36909148,1925.0,1924.2,0.59133958]
[1771840975331,0.56409148,1924.9,1924.2,0.59133958]
[1771840975922,0.56409148,1924.9,1923.4,2.89718141]
[1771840976128,0.56409148,1924.9,1923.5,0.59133958]
[1771840976333,0.56409148,1924.9,1923.6,0.59133958]
[1771840976729,0.56409148,1924.9,1923.8,0.59133958]
[1771840976925,0.56409148,1924.9,1923.7,6.60169335]
[1771840976926,6.38988,1925.4,1924.0,0.59133958]
[1771840976927,0.56409148,1925.4,1924.0,0.59133958]
[1771840977127,7.36909148,1925.3,1924.0,0.59133958]
[1771840977432,0.56409148,1925.1,1924.0,0.59133958]
[1771840977824,0.56409148,1924.9,1924.0,0.59133958]
[1771840978634,7.36909148,1924.8,1924.0,0.59133958]
[1771840979231,0.56409148,1924.8,1924.0,0.59133958]
[1771840979733,0.56409148,1924.9,1924.2,0.59133958]
[1771840980229,7.37009148,1924.9,1924.2,0.59133958]
[1771840980433,0.56409148,1924.8,1923.7,0.59133958]
[1771840980635,0.56409148,1925.0,1924.0,0.59133958]
[1771840980933,0.00519966,1925.5,1924.8,0.59133958]
[1771840981128,0.56409148,1926.3,1925.2,0.59133958]
[1771840981323,0.56409148,1926.8,1925.6,0.59133958]
[1771840981525,0.56409148,1926.6,1925.4,0.59133958]
[1771840981732,0.25956,1926.7,1924.8,0.59133958]
[1771840981733,0.56409148,1926.4,1924.8,0.59133958]
[1771840981934,0.56409148,1926.4,1925.2,0.59133958]
[1771840982124,0.56902957,1926.4,1925.2,0.59553559]
[1771840982333,0.56902957,1926.4,1925.2,0.00419601]
[1771840982730,0.56409148,1926.3,1925.2,0.59553559]
[1771840982930,0.56409148,1926.3,1925.4,0.59133958]
[1771840984329,0.00493809,1926.4,1925.2,0.00419601]
[1771840984330,5.77109148,1926.1,1925.2,0.00419601]
[1771840984535,0.56409148,1925.9,1924.2,0.59133958]
[1771840984836,0.56409148,1925.8,1924.3,0.59133958]
[1771840985339,0.56409148,1925.8,1924.0,0.25992]
[1771840985340,0.56409148,1925.6,1924.5,0.59133958]
[1771840985531,0.25965,1926.0,1924.5,0.59133958]
[1771840985532,5.77109148,1925.5,1924.5,0.00515069]
[1771840985732,0.56409148,1925.4,1924.5,0.00515069]
[1771840985927,0.56409148,1925.4,1924.5,0.59649027]
[1771840986536,0.56409148,1925.4,1924.5,0.00515069]
[1771840986934,5.77109148,1925.4,1924.5,0.00515069]
[1771840987138,0.56409148,1925.3,1924.5,0.00515069]
[1771840987637,0.56409148,1925.1,1924.0,0.59133958]
[1771840988632,0.56409148,1925.1,1924.0,0.59790492]
[1771840990636,0.56409148,1924.7,1924.0,0.00656534]
[1771840990836,0.56902269,1924.7,1924.0,0.00656534]
[1771840991436,0.56902269,1924.7,1923.2,0.59133958]
[1771840991732,0.56409148,1924.5,1923.2,0.59133958]
[1771840992141,0.56409148,1924.3,1923.2,0.59133958]
[1771840992338,0.56409148,1924.1,1923.0,0.59133958]
[1771840992532,0.56409148,1924.1,1923.0,0.59527672]
[1771840992937,0.56409148,1923.9,1923.0,0.59527672]
[1771840993136,0.56409148,1923.9,1923.0,0.00393714]
[1771840993741,0.56409148,1923.7,1922.5,0.59133958]
[1771840993933,0.56409148,1923.5,1922.5,0.59133958]
[1771840994841,0.56409148,1923.5,1922.5,0.59802076]
[1771840996642,0.56409148,1922.6,1921.8,0.59133958]
[1771840996841,0.26003,1923.2,1921.8,0.59133958]
[1771840997037,0.26003,1923.2,1921.3,0.26028]
[1771840997038,0.56409148,1923.1,1922.0,0.59133958]
[1771840997242,0.56409148,1922.9,1922.0,0.59133958]
[1771840997442,0.56409148,1922.9,1921.5,0.59133958]
[1771840997646,0.5916958,1922.7,1922.0,0.00562828]
[1771841000651,0.5916958,1922.7,1922.0,0.57140366]
[1771841006841,0.1,1922.8,1922.0,0.57140366]
[1771841009346,0.1,1922.8,1922.2,0.56577538]
[1771841013845,0.00498584,1922.9,1922.2,0.56577538]
[1771841015749,0.54926135,1923.4,1922.2,0.56577538]
[1771841015943,0.54926135,1923.3,1922.4,0.56577538]
[1771841016649,0.54926135,1923.0,1922.3,0.56577538]
[1771841016951,0.55302246,1923.0,1922.3,0.56577538]
[1771841018347,5.75626135,1923.5,1922.3,0.56577538]
[1771841018547,0.54926135,1923.4,1922.3,0.56577538]
[1771841018746,0.54926135,1923.3,1922.5,0.56577538]
[1771841019554,0.5559314,1923.3,1922.5,0.56577538]
[1771841020444,0.00667005,1923.3,1922.5,0.56577538]
[1771841020752,0.54926135,1923.2,1922.5,0.56577538]
[1771841020956,0.54926135,1923.1,1922.5,0.56577538]
[1771841022349,0.54926135,1923.1,1922.1,0.56577538]
[1771841023249,0.54926135,1923.0,1922.1,0.56577538]
[1771841024358,0.54926135,1922.9,1922.1,0.56577538]
[1771841025255,0.54926135,1922.8,1922.1,0.56577538]
[1771841025455,0.54926135,1922.8,1922.0,0.57140366]
[1771841029962,0.60300181,1922.5,1922.0,0.00562828]
[1771841031457,0.60300181,1922.5,1921.6,0.26024]
[1771841031458,0.60300181,1922.3,1921.6,0.56794227]
[1771841032162,0.60300181,1922.6,1921.6,0.56794227]
[1771841032666,0.60300181,1922.6,1921.6,0.57288694]
[1771841033755,0.60300181,1922.4,1921.6,0.57288694]
[1771841035464,6.39722,1923.1,1921.6,0.00494467]
[1771841035465,0.60300181,1922.2,1921.6,0.00494467]
[1771841035665,0.60300181,1922.1,1921.6,0.00494467]
[1771841035964,0.60300181,1921.9,1921.6,0.00494467]
[1771841036164,0.60300181,1921.8,1921.4,0.56794227]
[1771841036364,5.81000181,1922.0,1921.4,0.56794227]
[1771841036566,0.60300181,1921.9,1921.4,0.56794227]
[1771841037266,0.6078355,1921.9,1921.4,0.57171966]
[1771841038166,0.00483369,1921.9,1921.4,0.57171966]
[1771841038367,5.207,1922.7,1921.4,0.57171966]
[1771841038562,5.81000181,1922.3,1921.4,0.57171966]
[1771841038865,0.60300181,1922.2,1921.4,0.57171966]
[1771841039365,0.60728938,1922.2,1921.4,0.57171966]
[1771841041569,0.60300181,1922.5,1921.6,0.56794227]
[1771841042065,0.60300181,1922.5,1921.8,0.56794227]
[1771841042459,0.60300181,1922.6,1921.8,0.56794227]
[1771841042663,0.00663305,1922.5,1921.8,0.56794227]
[1771841043063,0.60300181,1922.8,1922.0,0.56794227]
[1771841043665,0.60300181,1922.7,1922.0,0.56794227]
[1771841043864,5.207,1922.8,1921.8,6.6515094]
[1771841043865,5.81000181,1922.6,1921.8,0.56794227]
[1771841044065,0.60300181,1922.5,1921.8,0.56794227]
[1771841046673,0.60300181,1922.4,1921.6,0.56794227]
[1771841048168,0.60300181,1922.3,1921.6,0.56794227]
[1771841048365,0.00619271,1922.6,1921.6,0.56794227]
[1771841048575,0.60300181,1922.5,1921.6,0.56794227]
[1771841049270,0.60300181,1922.4,1921.6,0.56794227]
[1771841050375,0.60300181,1922.2,1921.6,0.56794227]
[1771841052382,0.60300181,1922.1,1921.6,0.56794227]
[1771841052579,0.60300181,1922.3,1921.6,0.56794227]
[1771841056489,0.60300181,1922.3,1921.7,0.56794227]
[1771841058588,5.80345999,1922.5,1921.7,0.56794227]
[1771841058783,0.59645999,1922.4,1921.7,0.56794227]
[1771841059386,0.59645999,1922.4,1921.7,4.74710302]
[1771841059588,0.59645999,1922.4,1921.8,0.56852243]
[1771841060895,0.6026527,1922.6,1921.9,0.56852243]
[1771841061293,0.00619271,1922.6,1921.9,0.56852243]
[1771841061591,0.59645999,1922.8,1922.0,0.56852243]
[1771841061987,0.59645999,1922.8,1921.9,4.17916075]
[1771841061988,0.59645999,1922.7,1921.9,0.56852243]
[1771841062189,0.59645999,1922.5,1921.9,0.56852243]
[1771841062692,0.60259741,1922.5,1921.9,0.56852243]
[1771841063086,0.00613742,1922.5,1921.9,0.56852243]
[1771841063287,0.59645999,1922.7,1921.9,0.56852243]
[1771841064289,0.60091741,1922.7,1921.9,0.56852243]
[1771841064789,0.59645999,1922.5,1921.8,4.17916075]
[1771841064995,0.59645999,1922.4,1921.7,0.56852243]
[1771841065690,5.80345999,1922.3,1921.6,4.17916075]
[1771841065989,0.26456742,1922.7,1921.6,0.56852243]
[1771841065990,0.59645999,1922.1,1921.6,0.56852243]
[1771841071500,0.59645999,1922.2,1921.5,0.56852243]
[1771841075698,0.59645999,1922.2,1921.6,0.56852243]
[1771841076397,5.80345999,1922.2,1921.6,0.56852243]
[1771841076600,0.59645999,1922.1,1921.4,4.75146057]
[1771841077194,0.59645999,1922.1,1921.5,0.56852243]
[1771841078904,0.59645999,1922.0,1921.5,0.56852243]
[1771841079099,0.59645999,1922.0,1921.4,4.18293814]
[1771841079300,5.80345999,1922.0,1921.4,0.00377739]
[1771841079504,0.59645999,1921.9,1921.4,0.00377739]
[1771841080802,5.21145742,1922.7,1921.0,7.84125832]
[1771841080803,0.59645999,1921.7,1921.0,0.56852243]
[1771841081006,5.207,1921.8,1921.0,0.56852243]
[1771841081307,0.59645999,1921.7,1921.0,0.56852243]
[1771841081506,0.59645999,1922.1,1921.0,0.56852243]
[1771841081906,0.59645999,1922.1,1921.0,0.57511398]
[1771841082303,0.59645999,1921.8,1921.0,0.57511398]
[1771841083705,0.59645999,1921.7,1921.0,0.57511398]
[1771841086207,5.207,1922.0,1921.0,0.57511398]
[1771841086510,5.80345999,1921.8,1921.0,0.57511398]
[1771841087309,0.26017,1922.2,1921.0,0.57511398]
[1771841087310,0.59645999,1921.7,1921.0,0.44511398]
[1771841090605,0.55039758,1921.5,1921.0,0.44511398]
[1771841092114,0.55039758,1921.5,1921.0,0.00659155]
[1771841092308,5.75739758,1921.5,1920.9,0.58651813]
[1771841092506,0.55039758,1921.5,1920.7,0.58651813]
[1771841092706,0.55039758,1922.2,1920.8,0.58651813]
[1771841092909,0.55039758,1922.2,1920.9,0.58651813]
[1771841093515,0.55039758,1922.2,1920.9,0.59104363]
[1771841093811,0.55039758,1922.2,1921.0,0.58651813]
[1771841094014,0.55039758,1921.7,1921.0,0.58651813]
[1771841094211,0.55039758,1921.5,1921.0,0.58651813]
[1771841094411,0.55039758,1921.9,1921.0,0.58651813]
[1771841094605,0.26014,1922.4,1921.1,0.26031]
[1771841094805,0.24105302,1922.3,1921.3,0.58651813]
[1771841095410,0.24105302,1922.3,1921.5,0.58651813]
[1771841099213,0.24105302,1922.3,1921.7,1.47359861]
[1771841099609,0.24105302,1922.3,1921.7,2.06011674]
[1771841101017,5.21145742,1922.7,1921.4,0.26027]
[1771841101018,0.2434094,1922.5,1922.0,0.58651813]
[1771841101319,0.2434094,1922.5,1921.5,1.47359861]
[1771841101320,0.00445742,1922.7,1922.4,0.59871346]
[1771841101521,0.01338197,1922.9,1922.6,0.59871346]
[1771841101721,0.01338197,1923.0,1922.6,0.59871346]
[1771841102415,0.01954819,1923.0,1922.6,0.59871346]
[1771841102613,5.14730319,1923.5,1922.6,0.59871346]
[1771841102923,1.65433361,1923.6,1922.6,0.59871346]
[1771841103220,0.25998,1923.6,1922.6,0.59871346]
[1771841103419,0.228282,1923.6,1922.6,0.59871346]
[1771841103620,0.23354962,1923.6,1922.6,0.59871346]
[1771841103820,0.20185162,1923.6,1922.6,0.59871346]
[1771841104021,0.17015362,1923.6,1922.6,0.59871346]
[1771841105421,0.00526762,1923.6,1922.6,0.59871346]
[1771841106329,0.26524762,1923.6,1922.6,0.59871346]
[1771841108918,0.26524762,1923.6,1922.4,0.61318875]
[1771841109125,0.26007,1922.9,1922.2,0.60775393]
[1771841109314,0.00182069,1922.8,1921.5,0.60775393]
[1771841110224,0.00182069,1922.8,1921.5,0.61228735]
[1771841111824,0.00159147,1922.6,1921.5,0.61228735]
[1771841113126,0.00159147,1922.2,1921.5,0.61228735]
[1771841113322,0.00159147,1922.0,1921.5,0.00453342]
[1771841113526,0.00416697,1922.0,1921.5,0.00453342]
[1771841113728,0.00416697,1922.0,1921.2,0.60702673]
[1771841114827,0.00416697,1922.0,1921.2,0.61373622]
[1771841115329,0.26026,1921.6,1921.0,0.60702673]
[1771841115518,0.26026,1921.6,1920.2,0.60790436]
[1771841116028,0.26031,1921.2,1920.2,0.60790436]
[1771841116325,0.26031,1921.2,1920.2,0.61408396]
[1771841116524,0.26024,1921.7,1920.2,0.61408396]
[1771841118226,0.26024,1921.7,1920.4,2.27176262]
[1771841118433,0.26024,1921.7,1920.5,0.62589016]
[1771841118628,6.66211,1921.7,1920.5,0.62589016]
[1771841118827,0.26029,1921.3,1920.5,0.62589016]
[1771841119924,6.40456,1920.9,1920.2,9.6e-06]
[1771841120125,0.26035,1920.9,1920.2,9.6e-06]
[1771841121532,6.6649,1920.9,1920.2,9.6e-06]
[1771841121727,0.26039,1920.6,1920.2,9.6e-06]
[1771841121935,0.26501236,1920.6,1919.7,0.65642959]
[1771841122132,6.67065236,1920.6,1919.4,0.65642959]
[1771841122938,6.67065236,1920.6,1919.4,0.66163588]
[1771841124536,6.66703,1920.3,1919.4,0.00520629]
[1771841124735,0.26047,1920.0,1919.3,0.079245]
[1771841125739,0.26047,1920.0,1919.3,0.73389832]
[1771841127037,0.2604,1920.5,1919.3,0.73389832]
[1771841127239,6.66634,1920.5,1919.3,0.73389832]
[1771841128240,0.26045,1920.2,1919.3,0.73389832]
[1771841130546,0.2605,1919.8,1919.3,0.73389832]
[1771841133145,6.6687,1919.8,1919.3,7.5e-06]
[1771841133446,6.6687,1919.8,1918.0,0.629216]
[1771841133642,0.26055,1919.4,1918.0,0.629216]
[1771841133843,0.26048,1919.9,1918.2,0.62892562]
[1771841134245,0.26048,1919.9,1918.2,0.63302237]
[1771841134638,0.26048,1919.9,1918.4,0.62892562]
[1771841135047,0.26042,1920.4,1918.6,0.62892562]
[1771841135255,0.26042,1920.4,1918.7,0.26064]
[1771841135452,0.26042,1920.4,1918.8,0.62598025]
[1771841135649,0.00462236,1920.6,1919.4,0.62598025]
[1771841136050,0.00462236,1920.6,1919.6,0.62598025]
[1771841136249,0.26028,1921.4,1919.6,0.63047489]
[1771841136553,0.26028,1921.4,1919.8,0.62366907]
[1771841137354,0.26612867,1921.4,1919.8,0.62366907]
[1771841138453,6.66902867,1921.4,1919.8,0.62366907]
[1771841139047,0.26033,1921.0,1919.8,0.62366907]
[1771841139247,0.30847856,1921.0,1919.8,0.62366907]
[1771841139453,0.26033,1921.0,1919.8,0.62366907]
[1771841140457,6.40874867,1921.4,1919.8,0.62366907]
[1771841140458,0.04814856,1921.3,1919.8,0.62366907]
[1771841141752,0.00584867,1921.4,1919.8,0.62366907]
[1771841141753,0.04071909,1921.1,1919.8,0.62366907]
[1771841142150,0.00584867,1921.4,1920.0,0.58519884]
[1771841142151,0.04071909,1921.3,1920.0,0.58519884]
[1771841142347,0.00584867,1921.4,1920.2,0.58519884]
[1771841142749,0.00584867,1921.4,1920.4,0.58519884]
[1771841147057,0.04608353,1921.4,1920.4,0.58519884]
[1771841147255,0.04023486,1921.3,1920.4,0.58519884]
[1771841148263,0.26611867,1921.4,1920.4,0.58519884]
[1771841149761,0.00584867,1921.4,1920.4,0.58519884]
[1771841149960,0.00584867,1921.4,1920.6,0.5871065]
[1771841154262,0.03793487,1921.4,1920.6,0.5871065]
[1771841156965,0.00584867,1921.4,1920.6,0.5871065]
[1771841158268,0.26022,1921.8,1920.6,0.5871065]
[1771841158968,0.03789841,1921.7,1920.6,0.5871065]
[1771841159165,0.04441447,1921.7,1920.6,0.5871065]
[1771841160361,0.00651606,1921.7,1920.6,0.5871065]
[1771841160561,0.28608855,1922.0,1920.8,0.59204119]
[1771841160765,0.02589855,1921.9,1920.8,0.59204119]
[1771841160965,0.02589855,1921.7,1920.8,0.59204119]
[1771841161266,0.03892414,1921.7,1920.8,0.59204119]
[1771841161665,0.04462948,1921.7,1920.8,0.59204119]
[1771841163370,0.00570534,1921.7,1920.8,0.59204119]
[1771841164563,0.04187135,1921.7,1920.8,0.59204119]
[1771841166069,0.26025,1921.6,1920.8,0.59204119]
[1771841166268,0.03429634,1921.5,1920.8,0.59204119]
[1771841167172,0.29456634,1921.4,1920.8,0.59204119]
[1771841167372,0.03429634,1921.1,1920.6,0.5878423]
[1771841167567,0.2603,1921.2,1920.6,0.5878423]
[1771841167967,0.28983162,1921.2,1920.6,0.5878423]
[1771841169468,0.02739114,1921.1,1920.6,0.5878423]
[1771841169668,0.2603,1921.2,1920.6,0.5878423]
[1771841170869,0.02739114,1921.3,1920.6,0.5878423]
[1771841171069,0.02739114,1921.5,1920.6,0.5878423]
[1771841172473,0.55760982,1921.1,1920.1,0.54833783]
[1771841172681,0.55760982,1921.1,1920.2,0.54833783]
[1771841172978,6.40289,1921.4,1920.2,0.54833783]
[1771841172979,0.55760982,1920.9,1920.2,0.54833783]
[1771841173172,0.55760982,1920.9,1920.4,0.54833783]
[1771841173979,0.55760982,1920.9,1920.4,1.13618013]
[1771841174779,0.55760982,1920.7,1919.8,0.54833783]
[1771841174979,0.55760982,1920.5,1919.9,0.54833783]
[1771841176370,0.55760982,1920.5,1920.0,0.5878423]
[1771841176576,0.55760982,1920.5,1920.1,0.54833783]
[1771841176779,0.81798982,1920.6,1920.1,0.54833783]
[1771841176975,0.55760982,1920.5,1919.7,0.54833783]
[1771841177174,0.55760982,1920.3,1919.7,1.13618013]
[1771841177375,0.56299683,1920.3,1919.8,0.54833783]
[1771841177575,0.5930705,1920.1,1919.7,1.17919836]
[1771841177775,0.5930705,1920.1,1919.7,0.59135606]
[1771841178282,0.5930705,1919.9,1919.5,0.33840822]
[1771841178480,0.26049,1919.8,1918.6,4.48086465]
[1771841178679,0.58242291,1919.7,1918.6,0.33840822]
[1771841178978,0.58242291,1920.2,1918.7,11.52288096]
[1771841179481,0.58242291,1920.2,1918.7,11.52901422]
[1771841179982,0.26581701,1920.3,1919.0,0.26059]
[1771841180178,0.84823992,1920.3,1919.0,0.26059]
[1771841181081,0.84823992,1920.3,1919.1,0.33840822]
[1771841182077,0.58242291,1920.2,1919.1,0.33840822]
[1771841184678,0.00538701,1920.3,1919.2,6.95421129]
[1771841188880,0.58780992,1920.3,1919.3,0.33840822]
[1771841190388,0.58242291,1920.1,1919.3,0.33840822]
[1771841191388,0.00538701,1920.3,1919.3,0.33840822]
[1771841191689,0.58780992,1920.3,1919.3,2.61719565]
[1771841191990,0.58780992,1920.3,1919.3,2.27878743]
[1771841192384,0.58780992,1920.3,1919.4,0.33840822]
[1771841196294,0.58242291,1920.2,1919.4,0.33840822]
[1771841198191,0.58242291,1920.0,1919.4,0.33840822]
[1771841198491,0.58242291,1920.0,1918.7,0.00613326]
[1771841199495,0.58242291,1920.0,1918.9,2.27878743]
[1771841199789,0.58242291,1920.0,1919.0,0.2606]
[1771841200093,0.58242291,1920.2,1919.0,0.59900822]
[1771841200994,0.58242291,1920.1,1919.0,0.33840822]
[1771841201188,0.00538701,1920.3,1919.1,7.00204991]
[1771841201388,0.00538701,1920.3,1919.1,11.14450634]
[1771841202092,0.00538701,1920.3,1919.3,0.26056]
[1771841203187,0.58780992,1920.3,1919.3,0.26056]
[1771841204493,0.58780992,1920.3,1919.4,0.58432231]
[1771841207098,0.58780992,1920.3,1919.5,0.33840822]
[1771841207294,0.58780992,1920.3,1919.6,0.58432231]
[1771841208094,0.58780992,1920.3,1919.8,0.56128376]
[1771841210302,0.58780992,1920.3,1919.6,0.56128376]
[1771841212605,0.58780992,1920.3,1919.7,0.33840822]
[1771841212801,0.58780992,1920.3,1919.7,0.89969198]
[1771841214099,0.58780992,1920.3,1919.8,0.33840822]
[1771841215403,0.58780992,1920.3,1919.7,0.56128376]
[1771841215601,0.58780992,1920.3,1919.8,0.33840822]
[1771841216704,0.58780992,1920.3,1919.7,0.56128376]
[1771841216906,0.58780992,1920.3,1919.8,0.33840822]
[1771841219103,0.58780992,1920.3,1919.9,0.89969198]
[1771841219298,0.58780992,1920.3,1919.9,0.56128376]
[1771841219505,0.58780992,1920.3,1919.5,0.56128376]
[1771841219702,0.58780992,1920.3,1919.6,0.56128376]
[1771841221402,0.00538701,1920.3,1919.8,0.56128376]
[1771841221706,0.5784553,1920.7,1919.8,0.56128376]
[1771841222006,0.5784553,1920.7,1920.0,0.56128376]
[1771841222508,0.58226554,1920.7,1920.0,0.56128376]
[1771841224398,0.58226554,1920.7,1920.1,0.33840822]
[1771841224607,0.58226554,1920.7,1920.1,0.90585369]
[1771841224808,0.58226554,1920.7,1920.2,0.33840822]
[1771841225903,0.58226554,1920.7,1920.1,0.00616171]
[1771841229404,0.5784553,1920.3,1919.7,0.56128376]
[1771841229916,0.5784553,1920.4,1919.7,0.56128376]
[1771841230210,0.5784553,1920.6,1919.7,0.56128376]
[1771841230408,0.5784553,1920.6,1919.7,0.56615411]
[1771841232700,0.26042,1920.4,1919.3,0.90408279]
[1771841232901,0.26042,1920.4,1919.3,0.60526572]
[1771841233302,0.01767325,1920.3,1919.4,0.60526572]
[1771841233705,0.01767325,1920.3,1919.4,0.61058252]
[1771841233908,0.01767325,1920.3,1919.5,0.59642909]
[1771841238714,0.01767325,1920.3,1919.4,0.0053168]
[1771841239211,0.01767325,1920.3,1919.4,0.60013641]
[1771841240718,0.02023392,1920.1,1919.4,0.60013641]
[1771841243323,0.0183694,1919.9,1919.4,0.60013641]
[1771841244629,0.0183694,1919.9,1919.4,0.6017554]
[1771841246725,0.27516372,1920.4,1919.5,0.59777671]
[1771841246926,0.01475372,1920.3,1919.5,0.59777671]
[1771841247229,0.01475372,1920.3,1919.7,0.59777671]
[1771841247630,0.01475372,1920.3,1919.8,0.59763285]
[1771841248233,0.26041,1920.4,1919.9,0.59763285]
[1771841248532,0.27545144,1920.4,1919.9,0.59763285]
[1771841248731,0.01504144,1920.3,1919.9,0.59763285]
[1771841250431,0.27226499,1919.9,1919.4,0.60458288]
[1771841250634,0.26049,1919.9,1919.4,0.60458288]
[1771841250828,0.26043,1920.3,1919.7,0.59926608]
[1771841251230,0.26043,1920.3,1919.8,0.59926608]
[1771841251832,0.26043,1920.3,1919.9,0.5949499]
[1771841252228,0.52040734,1920.2,1919.4,0.0053168]
[1771841252530,0.78090734,1919.8,1919.4,0.57436531]
[1771841252933,0.78090734,1919.8,1919.6,2.06837]
[1771841253236,0.52040734,1919.7,1919.4,0.57436531]
[1771841253534,0.78403596,1919.8,1919.5,1.3103]
[1771841253732,0.52353596,1919.7,1919.5,1.3103]
[1771841254233,0.78403596,1919.8,1919.6,1.3103]
[1771841254426,0.78403596,1919.8,1919.4,0.57436531]
[1771841254630,0.78403596,1919.8,1919.5,1.3103]
[1771841255535,0.78403596,1919.8,1919.6,1.3103]
[1771841255735,0.78403596,1919.8,1919.4,0.57436531]
[1771841255935,0.78403596,1919.8,1919.5,1.3103]
[1771841256329,0.78403596,1919.8,1919.6,1.3103]
[1771841256637,0.78403596,1919.8,1919.4,0.57436531]
[1771841256836,0.78403596,1919.8,1919.5,1.3103]
[1771841257036,0.78403596,1919.8,1919.4,0.57436531]
[1771841257337,0.78403596,1919.8,1919.5,1.3103]
[1771841257531,6.40684,1920.3,1919.4,6.8e-06]
[1771841257532,0.78133422,1919.6,1919.4,6.8e-06]
[1771841257728,0.52081422,1919.5,1919.4,6.8e-06]
[1771841257933,0.52081422,1919.5,1919.1,0.56904851]
[1771841258829,0.26052,1919.6,1919.1,0.56904851]
[1771841259034,0.26418232,1920.0,1919.1,0.57557502]
[1771841259736,0.26047,1920.0,1919.1,0.57557502]
[1771841259937,0.32112455,1920.0,1919.1,0.57557502]
[1771841260437,0.26047,1920.0,1919.1,0.57557502]
[1771841260938,0.32112455,1920.0,1919.1,0.57557502]
[1771841263940,0.07177471,1919.9,1919.1,0.57557502]
[1771841264537,0.26047,1920.0,1919.1,0.57557502]
[1771841264742,0.07177471,1920.1,1919.1,0.57557502]
[1771841265444,0.07324309,1919.8,1919.1,0.57557502]
[1771841266142,0.26048,1919.9,1919.1,0.57557502]
[1771841266343,0.33372309,1919.9,1919.1,0.57557502]
[1771841268248,0.07324309,1919.8,1919.1,0.57557502]
[1771841270145,0.26048,1919.9,1919.1,0.57557502]
[1771841270345,0.32479591,1919.9,1919.1,0.57557502]
[1771841270645,0.06431591,1919.8,1919.1,0.57557502]
[1771841271352,0.2605,1919.7,1919.1,0.57557502]
[1771841271547,0.32855225,1919.7,1919.1,0.57557502]
[1771841273255,0.06805225,1919.6,1919.1,0.57557502]
[1771841273455,0.2605,1919.7,1919.1,0.57557502]
[1771841273852,0.26056,1919.3,1918.5,0.5744026]
[1771841274149,0.32284052,1919.7,1918.5,0.5744026]
[1771841274949,0.06233052,1919.6,1918.5,0.58109206]
[1771841275554,0.07689944,1919.4,1918.5,0.58109206]
[1771841277454,0.08787377,1919.2,1918.5,0.58109206]
[1771841277753,0.26056,1919.3,1918.5,0.58109206]
[1771841279957,0.2648274,1919.7,1918.5,0.58109206]
[1771841280354,0.08929651,1920.1,1918.6,0.56642673]
[1771841280557,12.91611313,1920.6,1918.8,0.56642673]
[1771841280558,0.08929651,1920.3,1918.8,0.56642673]
[1771841280754,0.34974651,1920.1,1919.0,0.56642673]
[1771841280956,0.26045,1920.1,1919.0,0.56642673]
[1771841281459,0.36703301,1920.1,1919.0,0.56642673]
[1771841281662,0.26666821,1920.1,1919.0,0.56642673]
[1771841282159,0.36703301,1920.1,1919.0,0.56642673]
[1771841284560,0.09426407,1920.0,1919.0,0.56642673]
[1771841285260,0.26666821,1920.1,1919.0,0.56642673]
[1771841285860,0.36262984,1920.1,1919.0,0.56642673]
[1771841287559,0.09588953,1920.0,1919.0,0.56642673]
[1771841289358,0.00621821,1920.1,1919.0,0.56642673]
[1771841290461,0.2604,1920.5,1919.4,0.56642673]
[1771841290664,0.36256017,1920.5,1919.4,0.56642673]
[1771841290859,0.10216017,1920.4,1919.4,0.56642673]
[1771841291560,0.10600323,1920.4,1919.4,0.56642673]
[1771841292565,0.00384306,1920.4,1919.4,0.56642673]
[1771841292766,0.0739748,1920.8,1919.6,0.56858046]
[1771841292969,0.3343148,1920.9,1919.6,0.56858046]
[1771841293367,0.0739748,1920.8,1919.6,0.56858046]
[1771841293871,0.07986539,1920.8,1919.6,0.56858046]
[1771841294471,0.26625059,1920.8,1919.6,0.56858046]
[1771841294769,0.26038,1920.6,1919.6,0.56858046]
[1771841294963,0.07229876,1920.5,1919.6,0.56858046]
[1771841298570,0.33060746,1920.6,1919.6,0.56858046]
[1771841298769,0.07022746,1920.5,1919.6,0.56858046]
[1771841300072,0.26038,1920.6,1919.6,0.56858046]
[1771841300271,0.33031505,1920.6,1919.6,0.56858046]
[1771841302373,0.06673133,1920.5,1919.6,0.56858046]
[1771841304175,0.26038,1920.6,1919.6,0.56858046]
[1771841304376,0.32821386,1920.6,1919.6,0.56858046]
[1771841305274,0.06783386,1920.5,1919.6,0.56858046]
[1771841305475,0.06770352,1920.3,1919.6,0.56858046]
[1771841306075,0.26041,1920.4,1919.6,0.56858046]
[1771841306477,0.06770352,1920.6,1919.6,0.56858046]
[1771841308377,0.26625059,1920.8,1919.6,0.56858046]
[1771841308576,0.33080947,1920.8,1919.6,0.56858046]
[1771841308781,0.06455888,1920.7,1919.6,0.56858046]
[1771841309775,0.00589059,1920.8,1919.8,0.5728507]
[1771841309982,0.32484654,1921.2,1920.0,0.5728507]
[1771841310280,11.7495039,1921.7,1920.1,0.26045]
[1771841310281,0.07043713,1921.5,1920.1,0.26045]
[1771841310578,0.07043713,1921.5,1920.2,0.56990541]
[1771841310980,0.07426834,1921.5,1920.2,0.57508897]
[1771841312882,0.06770536,1921.1,1920.2,0.57508897]
[1771841314986,0.06476127,1920.9,1920.2,0.57508897]
[1771841316391,0.05779696,1920.7,1920.2,0.57508897]
[1771841316688,0.05779696,1920.7,1920.2,0.00518356]
[1771841317085,0.05779696,1920.7,1920.2,0.58140905]
[1771841317587,0.05779696,1920.7,1920.2,0.00518356]
[1771841320495,0.05779696,1920.7,1920.2,0.58031022]
[1771841321593,0.05779696,1920.7,1920.2,0.00518356]
[1771841322895,0.05779696,1920.7,1920.2,0.58162793]
[1771841323295,0.05779696,1920.7,1920.0,0.57644437]
[1771841323995,0.05704964,1920.5,1920.0,0.57644437]
[1771841324496,0.05704964,1920.5,1920.0,0.58221064]
[1771841325398,0.05704964,1920.3,1920.0,0.58236542]
[1771841326392,0.05303577,1920.3,1920.0,0.58236542]
[1771841327193,0.31344577,1920.4,1920.0,0.58236542]
[1771841332101,0.26041,1920.4,1920.0,0.58236542]